bitfinex/quotes_SOLUSD_20240813
["timestamp","ask_amount","ask_price","bid_price","bid_amount"]
[1723540962375,6.8927,145.08,145.06,0.25098]
[1723540962807,6.8932,145.07,145.06,0.37647]
[1723540963472,6.8936,145.06,145.05,45.12549]
[1723540963689,6.8949,145.04,145.0,24.1368]
[1723540963895,6.8951,145.03,145.0,17.2404]
[1723540964402,6.8951,145.03,145.0,24.1368]
[1723540964608,6.8947,145.04,145.0,24.1368]
[1723540965077,31.96,145.08,145.0,24.1368]
[1723540965078,31.96,145.08,145.01,0.12549]
[1723540965288,6.894,145.06,145.02,6.8953]
[1723540965494,6.894,145.06,145.03,0.25098]
[1723540966173,6.894,145.06,145.03,45.25098]
[1723540966378,6.894,145.06,145.03,52.14608]
[1723540966899,26.8934,145.07,145.03,52.14608]
[1723540967095,26.8934,145.07,145.05,0.12549]
[1723540967306,6.8934,145.07,145.05,0.25098]
[1723540967599,6.8934,145.07,145.06,0.37647]
[1723540967800,6.8934,145.07,145.06,0.50196]
[1723540967996,6.8928,145.08,145.06,0.50196]
[1723540968180,6.8932,145.07,145.05,45.0]
[1723540968381,6.8932,145.07,145.06,0.12549]
[1723540968685,6.8932,145.07,145.05,0.25098]
[1723540969584,6.8936,145.06,145.05,0.25098]
[1723540969784,6.8941,145.05,145.03,45.0]
[1723540969994,6.8941,145.05,145.03,0.12549]
[1723540970196,6.8941,145.05,145.03,0.25098]
[1723540970803,6.8933,145.07,145.03,7.14578]
[1723540970988,31.96,145.1,145.05,0.12549]
[1723540971294,20.0,145.09,145.05,0.25098]
[1723540971477,6.8929,145.08,145.05,0.25098]
[1723540971679,6.8932,145.07,145.05,0.25098]
[1723540977183,20.0,145.09,145.04,45.25098]
[1723540977502,6.8941,145.05,145.04,0.12549]
[1723540978582,20.0,145.09,145.05,6.894]
[1723540978775,6.8928,145.08,145.06,45.0]
[1723540979492,6.8928,145.08,145.05,46.37858462]
[1723540979672,20.0,145.1,145.06,0.25098]
[1723540979878,6.8915,145.11,145.08,0.12549]
[1723540980183,6.8915,145.11,145.08,46.50387426]
[1723540980969,49.1858,145.14,145.08,45.12549]
[1723540981195,20.0,145.13,145.08,45.12549]
[1723540981599,16.3817,145.15,145.08,62.35719]
[1723540981798,6.89,145.14,145.11,0.12549]
[1723540981982,6.89,145.14,145.11,46.88001589]
[1723540982877,6.8908,145.12,145.11,45.25098]
[1723540983079,6.8908,145.12,145.11,45.0]
[1723540983308,6.8918,145.1,145.06,22.7003]
[1723540983604,6.8914,145.11,145.08,0.12549]
[1723540984005,6.891,145.12,145.08,7.01819]
[1723540984195,6.891,145.12,145.09,45.25098]
[1723540984509,6.8913,145.11,145.09,45.25098]
[1723540985303,6.8913,145.11,145.1,45.0]
[1723540985614,6.8913,145.11,145.09,0.25098]
[1723540985984,31.96,145.14,145.09,0.25098]
[1723540985985,6.891,145.12,145.09,0.25098]
[1723540986184,6.8897,145.15,145.11,6.8911]
[1723540986489,20.0,145.14,145.12,46.50349447]
[1723540986703,6.8897,145.15,145.12,46.50349447]
[1723540987308,6.8899,145.14,145.12,46.50349447]
[1723540987890,6.8896,145.15,145.12,46.50349447]
[1723540988299,6.8896,145.15,145.12,45.12549]
[1723540988512,6.8896,145.15,145.13,0.25098]
[1723540989992,6.8898,145.14,145.13,0.25098]
[1723540990198,6.8903,145.13,145.12,45.12549]
[1723540990387,6.8903,145.13,145.12,45.0]
[1723540990591,31.96,145.14,145.07,6.893]
[1723540990812,6.8911,145.12,145.08,7.14358]
[1723540991110,6.8905,145.13,145.09,6.892]
[1723540991409,6.89,145.14,145.1,7.14268]
[1723540991922,6.89,145.14,145.11,45.25098]
[1723540992094,6.8896,145.15,145.12,0.25098]
[1723540992295,20.0,145.14,145.13,0.25098]
[1723540992612,26.8898,145.14,145.13,0.12549]
[1723540992825,6.8903,145.13,145.12,0.37647]
[1723540992986,20.0,145.14,145.12,0.50196]
[1723540993494,48.3417,145.18,145.12,0.50196]
[1723540993495,20.0,145.17,145.12,0.50196]
[1723540993801,6.8903,145.13,145.12,0.50196]
[1723540994808,6.8908,145.12,145.11,45.0]
[1723540996106,38.8502,145.14,145.11,45.0]
[1723540996309,6.8901,145.14,145.11,0.12549]
[1723540996504,6.8901,145.14,145.11,0.25098]
[1723540997691,6.8904,145.13,145.11,0.25098]
[1723540997997,37.2218,145.17,145.11,0.25098]
[1723540997998,6.8908,145.12,145.11,0.12549]
[1723540998204,6.8913,145.11,145.1,45.37647]
[1723540998406,6.8913,145.11,145.1,45.0]
[1723541000296,6.8913,145.11,145.08,0.12549]
[1723541000496,6.8913,145.11,145.08,45.50196]
[1723541001303,6.8919,145.1,145.08,45.50196]
[1723541001501,6.8919,145.1,145.08,0.50196]
[1723541002133,6.8922,145.09,145.08,0.12549]
[1723541002421,6.8941,145.05,145.02,22.43]
[1723541002721,6.8943,145.05,145.02,15.5345]
[1723541002921,6.8943,145.05,145.01,6.8957]
[1723541003509,6.8951,145.03,145.0,17.2405]
[1723541003817,31.96,145.06,145.0,24.137]
[1723541003818,6.8947,145.04,145.0,24.137]
[1723541004122,6.8943,145.05,145.01,6.896]
[1723541004830,31.96,145.06,145.02,45.0]
[1723541005016,6.8956,145.02,144.98,22.8382]
[1723541005400,6.8956,145.02,144.98,6.8973]
[1723541005602,31.96,145.04,144.92,6.6237]
[1723541005603,31.96,145.0,144.92,6.6237]
[1723541006230,31.96,145.0,144.93,6.8998]
[1723541006231,6.8975,144.98,144.93,6.8998]
[1723541006523,6.8981,144.97,144.93,6.8998]
[1723541006900,31.96,145.0,144.94,17.2481]
[1723541007525,6.8975,144.98,144.94,17.2481]
[1723541007831,6.898,144.97,144.93,6.8997]
[1723541008705,6.8976,144.98,144.94,0.12549]
[1723541008905,6.8976,144.98,144.94,7.02469]
[1723541009313,6.8971,144.99,144.95,45.0]
[1723541010011,31.96,145.0,144.95,45.0]
[1723541010213,6.8981,144.97,144.93,17.2492]
[1723541010415,6.8981,144.97,144.9,15.8654]
[1723541010416,31.96,144.96,144.9,17.2525]
[1723541010621,6.899,144.95,144.9,24.1536]
[1723541010825,31.96,144.96,144.88,6.461]
[1723541011020,31.96,144.96,144.87,17.2563]
[1723541011021,6.9009,144.91,144.87,17.2563]
[1723541011728,6.9016,144.9,144.85,6.9033]
[1723541012113,6.9009,144.91,144.86,6.903]
[1723541012312,6.9016,144.9,144.85,6.9035]
[1723541012513,6.9016,144.9,144.86,6.9031]
[1723541013137,6.9016,144.9,144.85,6.9036]
[1723541013334,31.96,144.88,144.81,6.0546]
[1723541013538,31.96,144.88,144.78,38.646]
[1723541013747,20.0,144.87,144.78,21.3792]
[1723541013913,26.2693,144.87,144.75,31.96]
[1723541014242,31.96,144.86,144.74,22.1948933]
[1723541014437,31.96,144.83,144.79,6.9064]
[1723541014641,20.0,144.82,144.74,22.1948933]
[1723541014828,6.906,144.81,144.76,6.9078]
[1723541015029,26.9051,144.82,144.77,6.9074]
[1723541015235,51.96,144.82,144.75,6.9081]
[1723541015425,6.9065,144.79,144.74,31.0509933]
[1723541015757,6.9065,144.79,144.74,24.9963933]
[1723541015943,6.9078,144.77,144.74,0.8156933]
[1723541016238,31.96,144.8,144.74,0.8156933]
[1723541016414,38.8664,144.8,144.74,7.7241933]
[1723541016614,38.8664,144.8,144.75,6.9082]
[1723541016818,31.96,144.8,144.75,6.9082]
[1723541017043,38.8663,144.8,144.75,6.9082]
[1723541017244,6.9065,144.79,144.74,25.1214833]
[1723541017622,58.8651,144.82,144.74,18.0870933]
[1723541017819,20.0,144.82,144.74,0.8156933]
[1723541018017,20.0,144.84,144.74,32.7756933]
[1723541018219,16.1863,144.85,144.78,17.2665]
[1723541018529,38.2293,144.87,144.79,0.25098]
[1723541018728,48.4088,144.89,144.81,0.12549]
[1723541018945,31.96,144.87,144.8,24.17]
[1723541019119,31.96,144.87,144.8,17.264]
[1723541019325,31.96,144.87,144.81,45.12549]
[1723541019520,31.96,144.87,144.81,45.25098]
[1723541019745,31.96,144.87,144.81,45.12549]
[1723541019950,56.5588,144.89,144.81,45.12549]
[1723541020240,20.0,144.88,144.81,45.12549]
[1723541020850,6.9027,144.87,144.83,0.12549]
[1723541021050,20.0,144.86,144.83,45.12549]
[1723541021345,20.0,144.86,144.83,52.02999]
[1723541021548,20.0,144.86,144.83,45.12549]
[1723541022223,20.0,144.86,144.83,45.0]
[1723541022443,20.0,144.88,144.82,45.37647]
[1723541022642,6.9038,144.85,144.82,45.37647]
[1723541023026,6.9038,144.85,144.82,45.0]
[1723541023224,6.9038,144.85,144.81,45.12549]
[1723541023917,6.9028,144.87,144.82,8.66235215]
[1723541024131,26.9032,144.86,144.83,45.12549]
[1723541024326,26.9032,144.86,144.83,0.12549]
[1723541024543,26.9032,144.86,144.82,0.12549]
[1723541024846,26.9032,144.86,144.83,0.12549]
[1723541025047,20.0,144.86,144.83,45.12549]
[1723541025348,6.9032,144.86,144.84,45.12549]
[1723541025651,20.0,144.88,144.83,0.12549]
[1723541025947,20.0,144.9,144.83,0.37647]
[1723541026142,40.11,144.89,144.83,45.12549]
[1723541026449,26.9024,144.88,144.85,0.12549]
[1723541026634,6.9019,144.89,144.85,0.37647]
[1723541026826,20.0,144.88,144.85,0.12549]
[1723541027032,20.0,144.9,144.85,0.12549]
[1723541027227,20.0,144.9,144.85,7.27967]
[1723541027428,6.9013,144.9,144.87,0.12549]
[1723541027627,6.9009,144.91,144.87,45.25098]
[1723541027823,6.9005,144.92,144.87,53.53359433]
[1723541028040,46.2466,144.95,144.89,0.12549]
[1723541028243,46.4641,144.99,144.89,45.25098]
[1723541028527,6.8989,144.95,144.92,0.12549]
[1723541028851,6.8994,144.94,144.92,45.12549]
[1723541029034,6.8999,144.93,144.91,45.0]
[1723541029243,6.8999,144.93,144.91,0.12549]
[1723541029428,46.4641,144.99,144.91,1.63099084]
[1723541029630,46.4641,144.99,144.91,0.25098]
[1723541029934,46.4641,144.99,144.92,0.12549]
[1723541030553,46.4641,144.99,144.93,0.12549]
[1723541030854,6.8986,144.96,144.93,0.25098]
[1723541033528,58.7543,144.67,144.66,55.72350351]
[1723541033732,20.12549,144.57,144.56,11.85746488]
[1723541033953,6.9218,144.47,144.39,34.61613632]
[1723541034152,6.9214,144.48,144.4,6.9251]
[1723541034357,47.0314,144.48,144.37,17.3157]
[1723541034640,20.0,144.47,144.33,17.3211]
[1723541034853,20.25098,144.47,144.33,24.2495]
[1723541035066,20.25098,144.47,144.33,17.3211]
[1723541035363,20.25098,144.47,144.34,6.9279]
[1723541035364,20.37647,144.47,144.34,6.9279]
[1723541035559,50.50196,144.47,144.33,17.3211]
[1723541035772,95.50196,144.47,144.34,6.928]
[1723541035930,95.50196,144.47,144.33,17.3211]
[1723541035931,50.50196,144.47,144.33,17.3211]
[1723541036466,60.11,144.47,144.36,17.3169]
[1723541036765,60.36098,144.47,144.36,17.3169]
[1723541037243,20.0,144.47,144.36,17.3169]
[1723541037653,60.11,144.47,144.36,17.3169]
[1723541037861,20.0,144.47,144.36,17.3169]
[1723541038066,20.0,144.47,144.38,6.926]
[1723541038238,20.0,144.47,144.36,17.3169]
[1723541038759,20.12549,144.47,144.36,17.3169]
[1723541038963,20.12549,144.47,144.37,6.9264]
[1723541039456,20.0,144.47,144.37,6.9264]
[1723541039664,20.0,144.47,144.38,6.9261]
[1723541040037,20.0,144.47,144.36,17.3169]
[1723541040235,92.42556479,144.47,144.36,17.3169]
[1723541040460,6.9237,144.43,144.36,17.3169]
[1723541040661,71.92394356,144.46,144.38,6.9261]
[1723541040878,71.92394356,144.46,144.39,45.0]
[1723541040879,20.0,144.45,144.39,45.0]
[1723541041165,20.0,144.45,144.37,6.9266]
[1723541041364,6.9238,144.43,144.38,45.0]
[1723541041539,6.9238,144.43,144.37,6.9266]
[1723541041739,17.3071,144.45,144.32,65.7318]
[1723541041957,17.3071,144.45,144.33,20.0]
[1723541042195,17.3071,144.45,144.36,6.927]
[1723541042365,6.9247,144.41,144.36,6.927]
[1723541042695,6.9247,144.41,144.35,17.3189]
[1723541042860,6.9247,144.41,144.35,24.2464]
[1723541043059,17.3071,144.45,144.35,17.3189]
[1723541043388,48.41,144.43,144.31,0.8156933]
[1723541043689,20.0,144.42,144.33,6.9285]
[1723541043897,20.0,144.42,144.31,18.1382933]
[1723541043898,6.9258,144.39,144.31,18.1382933]
[1723541044066,6.9252,144.4,144.34,6.928]
[1723541044264,6.9261,144.39,144.33,6.9285]
[1723541044467,6.9258,144.39,144.34,6.928]
[1723541044697,6.9251,144.41,144.35,6.9276]
[1723541045592,6.9252,144.4,144.35,6.9276]
[1723541045975,6.9275,144.36,144.31,0.8156933]
[1723541046163,6.9267,144.37,144.31,7.7447933]
[1723541046364,48.41,144.4,144.31,0.8156933]
[1723541046587,6.9275,144.36,144.31,0.8156933]
[1723541046797,48.41,144.4,144.31,0.8156933]
[1723541046972,20.12549,144.39,144.31,0.8156933]
[1723541047175,20.0,144.39,144.31,0.8156933]
[1723541047499,17.3158,144.38,144.31,0.8156933]
[1723541047701,20.0,144.37,144.31,0.8156933]
[1723541047868,6.9281,144.34,144.31,0.8156933]
[1723541048288,6.929,144.32,144.31,0.8156933]
[1723541048490,6.9296,144.31,144.26,6.9317]
[1723541048791,6.9296,144.31,144.22,24.268]
[1723541048792,6.9315,144.27,144.22,24.268]
[1723541049270,17.3234,144.32,144.22,17.3342]
[1723541049474,6.9313,144.28,144.22,24.2676]
[1723541049682,17.3234,144.32,144.22,17.3342]
[1723541049887,20.25098,144.31,144.19,32.8085]
[1723541050103,20.25098,144.31,144.19,33.1574021]
[1723541050104,6.9323,144.26,144.19,33.1574021]
[1723541050272,6.9329,144.24,144.19,7.2837021]
[1723541050478,20.0,144.25,144.2,17.3361]
[1723541050685,6.9319,144.27,144.2,17.3361]
[1723541050884,51.9659,144.33,144.22,17.3336]
[1723541051173,20.0,144.32,144.22,17.3336]
[1723541051370,6.9316,144.27,144.22,17.3336]
[1723541051589,17.3246,144.31,144.21,6.9343]
[1723541051765,6.9324,144.25,144.2,6.9347]
[1723541051964,6.9328,144.24,144.2,6.9347]
[1723541052165,71.10825026,144.29,144.23,6.9328]
[1723541052387,71.10825026,144.29,144.21,17.3351]
[1723541052388,6.9315,144.27,144.22,6.9334]
[1723541052604,71.10825026,144.26,144.21,17.3351]
[1723541052974,71.10825026,144.26,144.22,6.9337]
[1723541053175,71.10825026,144.26,144.21,17.3351]
[1723541053584,71.10825026,144.26,144.22,45.0]
[1723541053789,71.10825026,144.26,144.24,6.9325]
[1723541054600,71.10825026,144.26,144.25,6.9324]
[1723541054771,71.10825026,144.26,144.25,52.18338]
[1723541054971,17.3158,144.38,144.29,6.9304]
[1723541055173,17.3184,144.36,144.25,17.3304]
[1723541055384,6.9305,144.29,144.25,17.3304]
[1723541055574,6.93,144.3,144.25,24.2627]
[1723541056174,48.41,144.36,144.26,6.9315]
[1723541056374,6.9337,144.23,144.19,17.6865021]
[1723541056627,48.41,144.29,144.19,24.6213021]
[1723541056628,17.3286,144.27,144.19,24.6213021]
[1723541056903,6.933,144.24,144.2,6.9347]
[1723541057138,17.3256,144.3,144.2,6.9347]
[1723541057139,65.7356,144.3,144.2,6.9347]
[1723541057414,6.9329,144.24,144.19,7.2841021]
[1723541057796,48.41,144.27,144.19,0.3489021]
[1723541058018,20.0,144.26,144.19,17.6869021]
[1723541058314,48.41,144.3,144.19,17.6869021]
[1723541058315,6.9332,144.24,144.19,0.3489021]
[1723541058522,48.41,144.27,144.19,0.3489021]
[1723541058687,6.9327,144.25,144.19,7.2841021]
[1723541058889,6.9324,144.25,144.19,7.2841021]
[1723541059218,0.12549,144.29,144.19,0.3489021]
[1723541059506,6.9319,144.26,144.19,0.3489021]
[1723541059708,6.931,144.28,144.21,17.3353]
[1723541059919,68.41,144.27,144.19,0.3489021]
[1723541060096,6.9336,144.23,144.19,0.3489021]
[1723541060422,6.9348,144.2,144.19,0.3489021]
[1723541060604,6.9344,144.21,144.19,0.3489021]
[1723541061097,6.9338,144.22,144.19,0.3489021]
[1723541061423,20.0,144.21,144.19,0.3489021]
[1723541061600,6.9348,144.2,144.19,0.3489021]
[1723541063602,48.41,144.24,144.19,0.3489021]
[1723541063805,6.9347,144.21,144.19,0.3489021]
[1723541064222,6.9348,144.2,144.19,0.3489021]
[1723541066732,26.9348,144.2,144.19,0.3489021]
[1723541067600,20.0,144.2,144.19,0.3489021]
[1723541067932,48.41,144.24,144.19,0.3489021]
[1723541068132,26.9338,144.23,144.19,0.3489021]
[1723541068359,6.9348,144.2,144.19,0.3489021]
[1723541069625,6.9344,144.21,144.19,0.3489021]
[1723541069938,6.9348,144.2,144.19,0.3489021]
[1723541071018,6.9344,144.21,144.19,0.3489021]
[1723541071328,48.41,144.27,144.19,0.3489021]
[1723541071636,20.0,144.26,144.19,0.3489021]
[1723541072007,6.9329,144.24,144.19,0.3489021]
[1723541072225,60.46,144.26,144.19,0.3489021]
[1723541072226,20.0,144.26,144.19,7.2840021]
[1723541072425,6.9342,144.22,144.19,0.3489021]
[1723541072648,6.9334,144.23,144.19,0.3489021]
[1723541072851,40.46,144.24,144.19,0.3489021]
[1723541073052,6.9337,144.23,144.19,0.3489021]
[1723541073358,40.46,144.24,144.19,0.3489021]
[1723541073540,6.9334,144.23,144.19,0.3489021]
[1723541073724,40.46,144.24,144.19,0.3489021]
[1723541073923,6.9339,144.22,144.19,0.3489021]
[1723541074155,6.9348,144.2,144.19,0.3489021]
[1723541074454,6.9344,144.21,144.19,0.3489021]
[1723541074629,40.46,144.24,144.19,0.3489021]
[1723541075036,6.9339,144.22,144.19,0.3489021]
[1723541075235,6.9348,144.2,144.19,0.3489021]
[1723541075445,40.46,144.22,144.19,0.3489021]
[1723541075642,47.3948,144.2,144.19,0.3489021]
[1723541076453,17.3331,144.24,144.19,0.3489021]
[1723541076454,40.46,144.22,144.19,0.3489021]
[1723541076750,6.9341,144.22,144.19,0.3489021]
[1723541076955,57.7925,144.24,144.19,0.3489021]
[1723541077255,6.9344,144.21,144.19,0.3489021]
[1723541077423,57.7925,144.24,144.19,0.3489021]
[1723541077424,6.9339,144.22,144.19,0.3489021]
[1723541077845,40.46,144.24,144.19,0.3489021]
[1723541078057,40.46,144.26,144.19,0.3489021]
[1723541078225,46.92546405,144.33,144.19,0.3489021]
[1723541078226,6.9329,144.24,144.2,6.9347]
[1723541078759,6.9325,144.25,144.2,6.9347]
[1723541079133,6.9324,144.25,144.21,6.9341]
[1723541079325,6.9329,144.24,144.2,6.9344]
[1723541079526,6.9329,144.24,144.19,24.6211021]
[1723541079745,6.9344,144.21,144.19,0.3489021]
[1723541080769,40.46,144.24,144.19,0.3489021]
[1723541081140,6.9325,144.25,144.2,6.9347]
[1723541081752,6.9324,144.25,144.19,17.6867021]
[1723541082165,6.932,144.26,144.21,6.9339]
[1723541082353,6.932,144.26,144.19,17.6867021]
[1723541082778,6.932,144.26,144.21,17.3354]
[1723541082945,6.932,144.26,144.21,24.2695]
[1723541083140,6.932,144.26,144.22,6.9338]
[1723541083778,6.9315,144.27,144.21,17.3354]
[1723541084077,6.9295,144.31,144.26,6.9319]
[1723541084257,6.93,144.3,144.26,6.9319]
[1723541084458,40.46,144.34,144.27,6.931]
[1723541084648,17.3219,144.33,144.22,17.3342]
[1723541084857,6.9303,144.3,144.23,45.0]
[1723541085059,6.9305,144.29,144.25,24.2624]
[1723541085274,40.46,144.32,144.27,17.3274]
[1723541085574,6.9296,144.31,144.27,6.9312]
[1723541085877,6.9287,144.33,144.28,6.9309]
[1723541086080,40.46,144.35,144.29,6.9303]
[1723541086246,6.9285,144.33,144.28,24.2575]
[1723541086450,40.46,144.37,144.24,0.25098]
[1723541086649,6.928,144.34,144.3,6.9296]
[1723541086963,6.9276,144.35,144.3,6.9296]
[1723541087171,6.9276,144.35,144.31,6.9294]
[1723541087369,6.9281,144.34,144.3,24.2544]
[1723541087565,40.46,144.37,144.27,17.3279]
[1723541087883,40.46,144.37,144.28,45.0]
[1723541088087,6.9289,144.33,144.28,51.9305]
[1723541088375,40.46,144.37,144.28,45.0]
[1723541088582,6.9277,144.35,144.3,6.9297]
[1723541088786,40.46,144.37,144.29,17.3256]
[1723541088991,40.46,144.37,144.29,24.2558]
[1723541088992,6.9284,144.34,144.29,24.2558]
[1723541089171,6.9277,144.35,144.3,6.9297]
[1723541089885,6.927,144.37,144.32,6.9289]
[1723541090060,6.9267,144.37,144.33,6.9284]
[1723541090365,6.9262,144.38,144.33,6.9285]
[1723541090556,6.9268,144.37,144.32,6.0224]
[1723541090753,6.9268,144.37,144.32,12.9512]
[1723541090992,6.9268,144.37,144.33,6.9285]
[1723541091289,6.9268,144.37,144.32,6.0224]
[1723541091580,6.9268,144.37,144.32,12.9513]
[1723541091963,6.9268,144.37,144.33,6.9285]
[1723541092488,40.46,144.41,144.33,17.3207]
[1723541092697,40.46,144.43,144.33,17.3207]
[1723541092991,20.0,144.42,144.35,6.9272]
[1723541093379,57.7725,144.41,144.32,6.0224]
[1723541093572,6.9269,144.37,144.32,12.9511]
[1723541094075,6.9272,144.36,144.32,12.9511]
[1723541094478,6.9267,144.37,144.32,12.9511]
[1723541094876,6.9267,144.37,144.33,6.9285]
[1723541095069,6.9262,144.38,144.33,6.9285]
[1723541095470,40.46,144.41,144.34,17.3196]
[1723541095771,20.0,144.42,144.34,17.3196]
[1723541095989,6.9257,144.39,144.34,24.2475]
[1723541097193,6.9262,144.38,144.34,24.2475]
[1723541097369,6.9262,144.38,144.34,17.3196]
[1723541097570,6.9266,144.37,144.34,17.3196]
[1723541098177,40.46,144.41,144.32,12.9513]
[1723541098404,6.927,144.37,144.32,12.9513]
[1723541098987,6.927,144.37,144.33,6.9283]
[1723541099168,6.9263,144.38,144.34,6.9279]
[1723541099369,6.9268,144.37,144.33,17.3208]
[1723541099666,6.9263,144.38,144.33,24.2492]
[1723541099883,6.9256,144.4,144.36,6.9269]
[1723541100070,20.0,144.42,144.32,6.0224]
[1723541100275,6.9237,144.43,144.38,6.9258]
[1723541100464,6.9242,144.42,144.38,6.926]
[1723541100684,40.46,144.44,144.37,17.3162]
[1723541100899,40.46,144.44,144.35,6.9272]
[1723541100900,6.9255,144.4,144.35,6.9272]
[1723541101199,17.3157,144.38,144.32,6.0224]
[1723541101397,40.46,144.4,144.32,6.0224]
[1723541101575,40.46,144.42,144.36,6.9266]
[1723541101781,40.46,144.42,144.34,17.3197]
[1723541101975,6.9262,144.38,144.34,24.2477]
[1723541102186,57.7717,144.42,144.34,17.3197]
[1723541102388,40.46,144.42,144.34,17.3197]
[1723541102590,6.9243,144.42,144.36,17.3174]
[1723541102788,40.46,144.44,144.36,17.3174]
[1723541103003,40.46,144.44,144.35,6.9271]
[1723541103205,6.9252,144.4,144.33,17.44639]
[1723541103415,6.9248,144.41,144.35,17.3184]
[1723541103620,40.46,144.42,144.32,23.3442]
[1723541103797,6.9258,144.39,144.34,6.9277]
[1723541104004,40.46,144.42,144.35,6.9275]
[1723541104311,6.9252,144.4,144.34,17.3197]
[1723541104613,6.9252,144.4,144.35,6.9274]
[1723541104819,6.9252,144.4,144.36,6.927]
[1723541105910,40.46,144.42,144.37,6.9263]
[1723541105911,6.9246,144.42,144.37,6.9263]
[1723541106123,6.9241,144.43,144.38,24.2402]
[1723541106419,17.3074,144.45,144.35,17.3185]
[1723541106617,6.9248,144.41,144.36,51.927]
[1723541106807,6.9248,144.41,144.36,6.927]
[1723541106994,6.9248,144.41,144.37,6.9263]
[1723541107196,20.0,144.44,144.37,6.9263]
[1723541107395,20.0,144.44,144.32,6.0224]
[1723541107396,40.46,144.42,144.32,6.0224]
[1723541107592,6.9255,144.4,144.35,6.9275]
[1723541108014,6.9257,144.39,144.35,6.9275]
[1723541108325,6.9261,144.38,144.34,24.2477]
[1723541108536,6.9258,144.39,144.34,24.2477]
[1723541108820,6.9265,144.38,144.34,17.3198]
[1723541109024,57.7709,144.42,144.35,6.9274]
[1723541109408,6.9257,144.39,144.35,6.9274]
[1723541109716,40.46,144.42,144.34,17.3198]
[1723541109897,40.46,144.42,144.35,6.9272]
[1723541110616,6.9259,144.39,144.35,6.9272]
[1723541111599,6.9253,144.4,144.36,6.927]
[1723541112727,40.46,144.42,144.37,6.9265]
[1723541112930,40.46,144.43,144.32,6.0224]
[1723541113148,6.9285,144.33,144.32,6.0224]
[1723541113814,17.318,144.36,144.27,23.9301]
[1723541114011,17.3208,144.34,144.27,6.6025]
[1723541114319,6.9296,144.31,144.27,6.6025]
[1723541114832,40.46,144.37,144.27,6.6025]
[1723541115018,6.9271,144.36,144.31,6.9293]
[1723541115339,40.46,144.39,144.3,24.2543]
[1723541115508,20.0,144.38,144.3,24.2543]
[1723541115920,20.0,144.38,144.3,17.3244]
[1723541116103,6.9276,144.35,144.3,17.3244]
[1723541116505,40.46,144.39,144.3,17.3244]
[1723541116724,6.9258,144.39,144.34,6.9279]
[1723541116926,40.46,144.41,144.32,17.3216]
[1723541116927,57.7729,144.41,144.32,17.3216]
[1723541117241,6.9277,144.35,144.29,17.3257]
[1723541117446,6.9277,144.35,144.3,6.9295]
[1723541118611,40.46,144.39,144.32,17.3225]
[1723541118818,6.9262,144.38,144.33,6.9285]
[1723541119128,6.9262,144.38,144.34,6.928]
[1723541119330,6.9257,144.39,144.34,6.928]
[1723541119527,6.9265,144.38,144.33,6.9285]
[1723541119739,6.9271,144.36,144.32,17.3225]
[1723541119941,17.3156,144.38,144.3,6.9298]
[1723541120245,6.9277,144.35,144.3,6.9299]
[1723541120820,6.9277,144.35,144.31,6.9294]
[1723541121042,40.46,144.39,144.32,6.9288]
[1723541121243,6.9267,144.37,144.32,6.9288]